bitfinex-derivatives/quotes_ETHF0:USTF0_20240924
["timestamp","ask_amount","ask_price","bid_price","bid_amount"]
[1727220849911,2.00143349,2655.2,2655.1,6.5451307]
[1727220850407,1.47574633,2655.4,2655.1,7.1185207]
[1727220850698,0.37656,2655.5,2655.1,7.1185207]
[1727220850699,1.47574633,2655.5,2655.3,3.05148719]
[1727220850913,1.47574633,2655.5,2655.1,4.06703351]
[1727220850914,1.66409676,2655.5,2655.4,3.42805719]
[1727220851199,2.00147974,2655.5,2655.4,5.3988907]
[1727220851997,1.81312808,2655.5,2655.4,5.3988907]
[1727220852513,1.81316536,2655.5,2655.4,5.3988907]
[1727220853208,1.47574633,2655.6,2655.5,0.37655]
[1727220853409,2.00154045,2655.6,2655.5,0.76445]
[1727220853712,2.00153764,2655.6,2655.5,5.7867707]
[1727220854209,2.00153775,2655.6,2655.5,5.7867707]
[1727220854406,1.81319748,2655.6,2655.5,5.7867707]
[1727220855012,2.00154071,2655.6,2655.5,5.7867707]
[1727220855805,1.47574633,2655.7,2655.6,0.37654]
[1727220856005,2.00153799,2655.7,2655.6,4.17182719]
[1727220856199,2.00153799,2655.7,2655.6,6.1426607]
[1727220856400,2.00153587,2655.7,2655.6,6.1426607]
[1727220856909,2.18972463,2655.7,2655.6,5.7661207]
[1727220857095,2.3780573,2655.7,2655.6,5.7661207]
[1727220858108,2.18972463,2655.7,2655.6,6.1426607]
[1727220858300,0.37652,2655.7,2655.6,6.1426607]
[1727220859413,2.18962742,2655.7,2655.6,6.1426607]
[1727220859612,0.37652,2655.7,2655.6,6.1426607]
[1727220860809,1.85226633,2655.8,2655.6,6.1426607]
[1727220861000,1.85226633,2655.8,2655.7,3.05148719]
[1727220861199,2.37786441,2655.8,2655.7,3.05148719]
[1727220861402,2.37786441,2655.8,2655.7,5.0223207]
[1727220861607,2.18953066,2655.8,2655.7,5.0223207]
[1727220861916,2.1895305,2655.8,2655.7,5.0223207]
[1727220862110,1.85226633,2655.8,2655.7,5.0223207]
[1727220862418,0.37652,2655.8,2655.7,5.0223207]
[1727220863304,1.85224633,2655.9,2655.7,5.3988407]
[1727220863507,1.85224633,2655.9,2655.8,3.42799719]
[1727220863814,0.3765,2655.9,2655.8,3.05148719]
[1727220864006,0.3765,2655.9,2655.8,5.0223207]
[1727220864308,1.47574633,2656.0,2655.9,0.3765]
[1727220864512,1.47574633,2656.1,2656.0,0.37648]
[1727220864712,1.8129081,2656.1,2656.0,3.80016719]
[1727220865012,2.37768975,2656.1,2656.0,5.7710007]
[1727220865210,2.04052798,2656.1,2656.0,5.7710007]
[1727220865406,2.18934503,2656.1,2656.0,5.7710007]
[1727220865604,2.37766144,2656.1,2656.0,5.3945207]
[1727220865802,2.37765712,2656.1,2656.0,5.3945207]
[1727220866010,2.37765712,2656.1,2656.0,5.7710007]
[1727220866214,2.04053092,2656.1,2656.0,5.7710007]
[1727220866413,1.85221633,2656.1,2656.0,5.3945207]
[1727220867014,0.37647,2656.1,2656.0,5.3945207]
[1727220867605,1.85221633,2656.1,2656.0,5.3945207]
[1727220868011,2.48857367,2656.1,2656.0,5.3945207]
[1727220868214,2.33983483,2656.1,2656.0,5.3945207]
[1727220868408,2.48855767,2656.1,2656.0,5.3945207]
[1727220868609,2.48855767,2656.1,2656.0,5.0223207]
[1727220868809,2.15151633,2656.1,2656.0,5.0223207]
[1727220869116,0.67577,2656.1,2656.0,5.0223207]
[1727220869312,2.15151633,2656.1,2656.0,5.0223207]
[1727220869519,0.67577,2656.1,2656.0,5.0223207]
[1727220869918,2.15151633,2656.1,2656.0,5.0223207]
[1727220870821,1.85221633,2656.1,2656.0,5.0223207]
[1727220873114,0.37647,2656.1,2656.0,5.0223207]
[1727220873309,1.85221633,2656.1,2656.0,5.0223207]
[1727220873514,0.37647,2656.1,2656.0,5.0223207]
[1727220873711,1.85221633,2656.1,2656.0,5.0223207]
[1727220873913,0.37647,2656.1,2656.0,5.0223207]
[1727220874114,1.85221633,2656.1,2656.0,5.0223207]
[1727220874513,2.18929387,2656.1,2656.0,5.0223207]
[1727220875321,2.18931002,2656.1,2656.0,5.0223207]
[1727220875915,1.85221633,2656.1,2656.0,5.0223207]
[1727220876120,2.04053151,2656.1,2656.0,5.0223207]
[1727220876317,2.37761744,2656.1,2656.0,5.0223207]
[1727220876512,2.3776155,2656.1,2656.0,5.0223207]
[1727220877318,2.18930226,2656.1,2656.0,5.0223207]
[1727220877725,1.85221633,2656.1,2656.0,5.0223207]
[1727220878227,2.04052874,2656.1,2656.0,5.0223207]
[1727220878726,2.04052874,2656.1,2656.0,5.7017207]
[1727220879226,1.85221633,2656.1,2656.0,5.7017207]
[1727220880025,2.04052983,2656.1,2656.0,5.7017207]
[1727220880220,2.0405291,2656.1,2656.0,5.7017207]
[1727220880829,1.6640591,2656.1,2656.0,6.0782007]
[1727220881018,1.6640591,2656.1,2656.0,5.7017207]
[1727220881019,2.0405291,2656.1,2656.0,5.7017207]
[1727220881221,0.56478277,2656.1,2656.0,5.7017207]
[1727220881526,1.85205312,2656.1,2656.0,5.7017207]
[1727220881727,2.04036589,2656.1,2656.0,5.7017207]
[1727220882327,0.56478277,2656.1,2656.0,5.7017207]
[1727220882533,1.85216399,2656.1,2656.0,5.7017207]
[1727220882715,2.04049247,2656.1,2656.0,5.7017207]
[1727220883118,0.56478277,2656.1,2656.0,5.7017207]
[1727220883332,0.56478277,2656.1,2656.0,5.0223207]
[1727220884532,1.50596277,2656.1,2656.0,3.05148719]
[1727220884828,1.50596277,2656.1,2655.8,0.6946]
[1727220884829,0.37651,2655.9,2655.8,0.37651]
[1727220885024,0.37651,2655.9,2655.8,1.97083351]
[1727220885025,1.85266832,2655.9,2655.8,1.97083351]
[1727220885230,1.47615832,2655.9,2655.8,5.3988307]
[1727220885425,1.81348929,2655.9,2655.8,6.0467307]
[1727220885825,1.47610481,2656.0,2655.9,0.3765]
[1727220886025,2.37815934,2656.0,2655.8,2.99523351]
[1727220886220,1.85259481,2656.0,2655.9,3.05148719]
[1727220886427,2.00164642,2656.0,2655.9,4.37798719]
[1727220886634,1.47610481,2656.1,2656.0,0.37648]
[1727220886829,2.00151821,2656.1,2656.0,0.37648]
[1727220887135,2.00151821,2656.1,2656.0,5.3988007]
[1727220887928,2.00161887,2656.1,2656.0,5.3988007]
[1727220888436,0.52551406,2656.1,2656.0,5.3988007]
[1727220888627,1.81362505,2656.1,2656.0,5.3988007]
[1727220888826,2.00193062,2656.1,2656.0,5.3988007]
[1727220889326,0.52551051,2656.1,2656.0,6.3488007]
[1727220891429,0.52576272,2656.1,2656.0,6.3488007]
[1727220892629,0.52576298,2656.1,2656.0,6.3488007]
[1727220893831,2.49764578,2656.1,2656.0,6.3488007]
[1727220894232,0.52576298,2656.1,2656.0,6.3488007]
[1727220894434,2.49764578,2656.1,2656.0,6.3488007]
[1727220895529,2.16018508,2656.1,2656.0,6.3488007]
[1727220895727,2.30968827,2656.1,2656.0,6.3488007]
[1727220895927,2.49799055,2656.1,2656.0,6.3488007]
[1727220896844,0.52610775,2656.1,2656.0,6.3488007]
[1727220897135,2.30993388,2656.1,2656.0,6.3488007]
[1727220897341,2.49823616,2656.1,2656.0,6.3488007]
[1727220897643,0.52610578,2656.1,2656.0,6.3488007]
[1727220898938,2.31036196,2656.1,2656.0,6.3488007]
[1727220899148,2.49866227,2656.1,2656.0,6.3488007]
[1727220899445,0.52610578,2656.1,2656.0,6.3488007]
[1727220900633,1.65545547,2656.1,2656.0,5.0223207]
[1727220900831,1.65545547,2656.1,2655.3,0.94143]
[1727220900832,0.94128,2655.8,2655.4,0.98439939]
[1727220901037,0.94128,2655.8,2655.4,3.9904929]
[1727220901038,2.34917926,2655.6,2655.4,3.9904929]
[1727220901245,0.90269104,2655.5,2655.4,3.6139329]
[1727220901437,0.90269104,2655.5,2655.4,2.62953351]
[1727220901637,0.90269104,2655.5,2655.4,6.66542009]
[1727220902036,0.52614104,2655.5,2655.4,7.04199009]
[1727220902436,0.52614104,2655.5,2655.4,7.99199009]
[1727220903544,0.33780547,2655.5,2655.4,8.48167497]
[1727220903842,0.33780547,2655.5,2655.4,15.42310497]
[1727220904040,1.47866398,2655.6,2655.5,1.31794]
[1727220904341,1.47866398,2655.6,2655.5,10.00131146]
[1727220904543,1.47866398,2655.6,2655.5,11.97214497]
[1727220904935,1.47866398,2655.6,2655.5,10.08075497]
[1727220905135,1.97263926,2655.7,2655.6,0.37654]
[1727220905336,2.04263926,2655.7,2655.5,1.47739657]
[1727220905637,2.46579908,2656.0,2654.8,4.53240912]
[1727220905638,0.9414,2655.5,2654.8,4.53240912]
[1727220905944,3.58445,2654.9,2654.8,6.50324263]
[1727220906145,8.28875771,2654.9,2654.8,3.96721354]
[1727220906442,6.12239501,2654.9,2654.8,3.96721354]
[1727220906844,6.49903501,2654.9,2654.8,3.96721354]
[1727220907462,4.4466605,2654.9,2654.8,3.96721354]
[1727220908143,4.4466605,2654.9,2654.8,44.76721354]
[1727220908442,0.62344194,2655.4,2655.3,0.37658]
[1727220908647,0.02344194,2655.4,2655.3,3.58438]
[1727220908946,0.7578,2655.9,2655.5,0.37655]
[1727220909139,0.7578,2655.9,2655.8,40.8]
[1727220909443,0.6373,2655.9,2655.8,40.8]
[1727220910243,4.7794,2655.9,2655.8,40.8]
[1727220910447,11.72065,2655.9,2655.8,40.8]
[1727220910639,5.72065,2655.9,2655.8,40.8]
[1727220910838,1.0138,2655.9,2655.8,40.8]
[1727220920447,3.3283,2656.2,2655.8,43.23651]
[1727220920448,0.37647,2656.1,2655.8,43.23651]
[1727220920651,0.37648,2656.0,2655.9,1.3391]
[1727220920844,0.37648,2656.1,2655.9,1.3391]
[1727220921344,0.3765,2655.9,2655.8,40.8]
[1727220921546,4.52555,2655.9,2655.8,40.8]
[1727220921853,10.42977445,2655.9,2655.8,40.8]
[1727220922149,8.95785,2655.9,2655.8,40.8]
[1727220922538,11.09640113,2655.9,2655.8,40.8]
[1727220924146,7.88844368,2655.9,2655.8,40.8]
[1727220924345,7.88819062,2655.9,2655.8,40.8]
[1727220924651,11.09599062,2655.9,2655.8,40.8]
[1727220924853,3.18128839,2655.9,2655.8,40.8]
[1727220925351,1.0432,2655.9,2655.8,40.8]
[1727220925937,3.18134151,2655.9,2655.8,40.8]
[1727220926141,1.0432,2655.9,2655.8,40.8]
[1727220926548,3.1813626,2655.9,2655.8,40.8]
[1727220926940,6.3891626,2655.9,2655.8,40.8]
[1727220927350,7.3304126,2655.9,2655.8,40.8]
[1727220928358,7.51875303,2655.9,2655.8,40.8]
[1727220928862,7.50714472,2655.9,2655.8,40.8]
[1727220930360,4.29934472,2655.9,2655.8,40.8]
[1727220930551,7.50714472,2655.9,2655.8,40.8]
[1727220932263,5.38058933,2655.9,2655.8,40.8]
[1727220932657,2.17278933,2655.9,2655.8,40.8]
[1727220932973,0.18833933,2655.9,2655.8,41.17651]
[1727220933254,0.56483933,2655.9,2655.8,40.8]
[1727220933455,0.56483933,2655.9,2655.8,42.1342]
[1727220933658,0.56483933,2655.9,2655.8,41.4709]
[1727220934251,1.50608933,2655.9,2655.8,41.4709]
[1727220934959,3.63275495,2655.9,2655.8,41.4709]
[1727220936169,6.09107739,2655.9,2655.8,41.4709]
[1727220936654,3.63275495,2655.9,2655.8,41.4709]
[1727220937258,0.56483933,2655.9,2655.8,41.4709]
[1727220937452,0.56483933,2655.9,2655.8,41.84741]
[1727220938258,0.56482343,2655.9,2655.8,41.4709]
[1727220938459,2.34413477,2655.9,2655.8,41.4709]
[1727220938664,2.5324582,2655.9,2655.8,41.4709]
[1727220938864,2.1559582,2655.9,2655.8,41.84741]
[1727220939553,2.1559582,2655.9,2655.8,41.4709]
[1727220939554,2.5324582,2655.9,2655.8,41.4709]
[1727220940062,2.5324582,2655.9,2655.8,42.104]
[1727220941263,2.51460623,2655.9,2655.8,42.104]
[1727220942965,2.34413477,2655.9,2655.8,42.104]
[1727220948567,2.34413477,2655.9,2655.8,42.48051]
[1727220949460,2.34413477,2655.9,2655.8,42.104]
[1727220949969,1.96763477,2655.9,2655.8,42.104]
[1727220950163,2.34413477,2655.9,2655.8,42.48051]
[1727220951069,2.34413477,2655.9,2655.8,42.104]
[1727220952275,1.96763477,2655.9,2655.8,42.48051]
[1727220953366,0.37649,2656.0,2655.8,42.48051]
[1727220953569,0.37649,2656.0,2655.9,0.6704]
[1727220953876,2.83479244,2656.1,2655.9,1.0469]
[1727220954175,2.12380764,2656.0,2655.9,1.0469]
[1727220954369,4.95861008,2656.1,2655.9,0.6704]
[1727220954674,4.58213008,2656.0,2655.9,0.6704]
[1727220954875,2.12380764,2656.0,2655.9,0.6704]
[1727220955265,4.58213008,2656.0,2655.9,0.6704]
[1727220955464,2.83480244,2656.1,2655.9,0.6704]
[1727220955666,0.37648,2656.0,2655.9,0.6704]
[1727220956777,2.50101407,2656.0,2655.9,0.6704]
[1727220957376,2.50137569,2656.0,2655.9,0.6704]
[1727220958069,0.3765,2655.9,2655.8,40.8]
[1727220958272,7.86962938,2655.9,2655.8,40.8]
[1727220958471,5.40884569,2655.9,2655.8,40.8]
[1727220960879,3.28395,2655.9,2655.8,40.8]
[1727220961070,5.3994403,2655.9,2655.8,40.8]
[1727220961271,5.58778612,2655.9,2655.8,40.8]
[1727220961876,9.35338612,2655.9,2655.8,40.8]
[1727220963679,12.56118612,2655.9,2655.8,40.8]
[1727220965488,12.56034377,2655.9,2655.8,40.8]
[1727220965984,8.79474377,2655.9,2655.8,40.8]
[1727220969676,8.79474377,2655.9,2655.2,2.06]
[1727220969677,0.9414,2655.5,2654.9,1.48097242]
[1727220969884,18.18384377,2655.9,2655.0,0.6786]
[1727220969885,2.34260545,2655.1,2655.0,0.6786]
[1727220970079,3.77565628,2655.1,2655.0,0.6786]
[1727220970291,3.6184722,2655.1,2655.0,41.4786]
[1727220970482,0.56499572,2655.1,2655.0,41.4786]
[1727220971280,2.52904792,2655.1,2655.0,41.4786]
[1727220971788,0.18838572,2655.1,2655.0,42.80522]
[1727220972085,1.66149903,2655.1,2655.0,46.57162]
[1727220972290,1.47311331,2655.1,2655.0,47.68162]
[1727220973479,1.47311331,2655.1,2655.0,53.68162]
[1727220974188,1.47311331,2655.2,2655.1,0.37661]
[1727220974490,1.47311331,2655.2,2655.1,3.58441]
[1727220974683,1.47311331,2655.3,2655.2,0.3766]
[1727220974880,1.47311331,2655.3,2655.2,6.386]
[1727220975180,1.9640522,2655.5,2655.4,0.37657]
[1727220975181,1.47311331,2655.5,2655.4,0.37657]
[1727220975382,1.47311331,2655.5,2655.4,7.34997]
[1727220975784,1.47311331,2655.5,2655.4,7.96667]
[1727220981193,2.3405822,2655.7,2655.5,0.37655]
[1727220981395,0.18833983,2655.6,2655.5,0.37655]
[1727220982384,0.56488983,2655.6,2655.4,0.99326]
[1727220982592,2.52894203,2655.6,2655.4,0.99326]
[1727220982897,0.18833983,2655.5,2655.4,0.99326]
[1727220983601,2.52894203,2655.6,2655.4,0.99326]
[1727220983790,0.18833983,2655.5,2655.4,0.99326]
[1727220987898,1.47240249,2655.5,2655.4,3.05327]
[1727220988192,2.3405722,2655.8,2655.6,0.37653]
[1727220988400,2.3405722,2655.8,2655.7,1.3142]
[1727220988596,2.52890433,2655.8,2655.7,1.3142]
[1727220988997,2.52890496,2655.8,2655.7,1.3142]
[1727220991710,2.52890496,2655.8,2655.7,1.69072]
[1727220991711,2.15238496,2655.8,2655.7,1.69072]
[1727220994797,2.15238496,2655.8,2655.4,0.6167]
[1727220994798,0.37655,2655.5,2655.4,0.6167]
[1727220995002,0.18833276,2655.5,2655.0,41.17661]
[1727220995307,1.47208658,2655.1,2655.0,0.6634]
[1727220995607,1.6602538,2655.1,2655.0,41.84002]
[1727220995903,1.47192104,2655.1,2655.0,41.84002]
[1727220997295,1.47192104,2655.2,2655.1,0.37661]
[1727220997513,1.47192104,2655.3,2655.2,0.3766]
[1727220997704,1.66027225,2655.3,2655.2,0.3766]
[1727220998401,1.47192104,2655.4,2655.3,0.37658]
[1727221001110,1.47192104,2655.5,2655.4,0.37657]
[1727221001414,1.66025939,2655.5,2655.4,0.37657]
[1727221003205,1.66025723,2655.5,2655.4,0.37657]
[1727221003611,0.18833619,2655.5,2655.4,0.37657]
[1727221004108,0.6423,2655.6,2655.5,0.37655]
[1727221004313,0.8306333,2655.6,2655.5,0.37655]
[1727221009717,0.8306333,2655.6,2654.8,1.48097242]
[1727221009718,0.94139,2655.5,2654.8,1.48097242]
[1727221010023,1.47250964,2655.1,2654.9,0.37664]
[1727221010219,1.9425,2655.0,2654.9,41.17664]
[1727221010703,1.9425,2655.0,2654.9,44.38444]
[1727221011312,1.47250964,2655.2,2655.1,0.37661]
[1727221011612,2.28036698,2655.2,2655.1,0.37661]
[1727221012209,2.28036698,2655.2,2655.0,1.03321]
[1727221012416,2.09200964,2655.2,2655.1,1.00351]
[1727221012717,2.28037083,2655.2,2655.1,1.00351]
[1727221013119,2.28037083,2655.2,2655.1,0.6269]
[1727221013315,2.09200964,2655.2,2655.1,1.00351]
[1727221013724,2.28036329,2655.2,2655.1,1.00351]
[1727221014019,2.09200964,2655.2,2655.1,1.00351]
[1727221015310,0.6195,2655.2,2655.1,1.00351]
[1727221016819,2.28035706,2655.2,2655.1,1.00351]
[1727221017016,2.28035706,2655.2,2655.1,0.37661]
[1727221017223,0.37662,2655.1,2654.9,3.8871]
[1727221017421,1.47285605,2655.1,2655.0,0.37662]
[1727221017618,1.66121426,2655.1,2655.0,0.37662]
[1727221018320,1.66121426,2655.1,2654.9,4.26373]
[1727221018521,1.47285605,2655.0,2654.9,4.26373]
[1727221019313,1.47285605,2655.1,2655.0,0.37662]
[1727221019529,1.66105187,2655.1,2655.0,0.37662]
[1727221019715,0.1883619,2655.1,2655.0,0.37662]
[1727221020620,1.47277694,2655.1,2655.0,0.37662]
[1727221020816,1.66113884,2655.1,2655.0,0.37662]
[1727221024723,1.66113884,2655.1,2654.9,3.2078]
[1727221024919,2.15171324,2655.1,2654.9,3.2078]
[1727221025117,0.56498705,2655.0,2654.9,3.2078]
[1727221025523,3.95476705,2655.0,2654.7,0.37666]
[1727221025725,1.47200919,2654.8,2654.7,0.37666]
[1727221026023,1.47200919,2654.8,2654.7,41.17666]
[1727221026219,1.66039299,2654.8,2654.7,41.17666]
[1727221026724,1.47200919,2654.8,2654.7,0.37666]
[1727221028622,3.40780919,2654.9,2654.7,0.37666]
[1727221029327,3.78445919,2654.9,2654.7,0.37666]
[1727221029624,1.47200919,2654.8,2654.7,0.37666]
[1727221030137,2.31245,2654.9,2654.7,0.37666]
[1727221030138,3.78445919,2654.9,2654.7,0.37666]
[1727221033332,3.78445919,2654.9,2654.7,41.17666]
[1727221033528,0.37665,2654.8,2654.7,40.8]
[1727221033737,0.3767,2654.5,2654.3,1.36368478]
[1727221033931,0.3767,2654.5,2654.3,0.37672]
[1727221033932,2.32431679,2654.4,2654.3,0.37672]
[1727221034133,1.9686,2654.4,2654.2,0.6222]
[1727221034447,0.37676,2654.1,2653.9,3.2078]
[1727221034625,2.32365512,2654.0,2653.9,3.83]
[1727221035038,2.32365512,2654.0,2653.9,4.20678]
[1727221035039,1.344,2654.0,2653.9,4.20678]
[1727221036735,0.97965512,2654.2,2654.1,0.37675]
[1727221036928,0.6431,2654.2,2654.0,0.37676]
[1727221037134,1.62275512,2654.2,2654.0,0.37676]
[1727221037836,0.6431,2654.2,2654.0,0.37676]
[1727221040943,1.01984,2654.2,2654.0,0.37676]
[1727221041243,0.6431,2654.2,2654.0,0.37676]
[1727221041644,1.01984,2654.2,2654.0,0.37676]
[1727221043035,0.6431,2654.2,2654.0,0.37676]
[1727221045039,0.6431,2654.2,2654.1,0.37675]
[1727221046942,1.2549,2654.4,2654.0,2.06]
[1727221047135,0.6707,2654.4,2654.3,0.37672]
[1727221047545,0.6707,2654.4,2654.3,1.05732]
[1727221048539,0.6707,2654.4,2654.3,0.6806]
[1727221050138,0.6707,2654.4,2654.2,3.2078]
[1727221050351,1.30753,2654.3,2654.1,1.01944]
[1727221050542,1.01714,2654.2,2653.9,3.58457]
[1727221050734,1.01714,2654.2,2654.0,0.37676]
[1727221050735,0.6404,2654.2,2654.0,0.37676]
[1727221051648,0.6404,2654.2,2653.9,3.8505]
[1727221051649,0.6404,2654.2,2654.1,0.37675]
[1727221052045,0.6707,2654.4,2654.0,2.06]
[1727221052352,0.6707,2654.4,2654.2,3.58453]
[1727221052750,0.6707,2654.4,2654.3,0.8935]
[1727221053750,0.6707,2654.4,2654.3,1.27022]
[1727221057253,1.89705512,2654.6,2654.4,0.37671]
[1727221057442,2.80595512,2654.6,2654.5,0.37669]
[1727221057642,1.8263,2654.6,2654.5,0.37669]
[1727221058753,2.80595512,2654.6,2654.5,0.37669]
[1727221059846,2.80595512,2654.6,2654.4,0.3767]
[1727221060043,1.8263,2654.6,2654.5,0.37669]
[1727221060246,0.9089,2654.6,2654.5,0.37669]
[1727221060451,0.9089,2654.6,2654.5,2.14209]
[1727221060659,0.97965512,2654.7,2654.6,0.37668]
[1727221061158,2.19396,2654.8,2654.7,0.37667]
[1727221061159,1.89065512,2654.8,2654.7,0.37667]
[1727221061653,1.89065512,2654.8,2654.6,0.901]
[1727221061856,1.89095512,2654.7,2654.6,0.901]
[1727221062754,0.9113,2654.7,2654.6,0.901]
[1727221063149,0.9113,2654.7,2654.6,1.27768]
[1727221063953,1.46953204,2654.8,2654.7,0.37667]
[1727221064149,1.46953204,2655.0,2654.9,0.37664]
[1727221064351,0.97972802,2655.0,2654.8,0.95]
[1727221064558,0.97972693,2654.9,2654.6,5.0588]
[1727221064761,0.97972693,2654.9,2654.8,0.37665]
[1727221065162,0.97972693,2654.9,2654.8,41.17665]
[1727221066963,0.97972693,2654.9,2654.8,40.8]
[1727221067259,0.97972693,2654.9,2654.8,41.17665]
[1727221067461,1.65791146,2655.0,2654.6,4.21648986]
[1727221067649,1.85132313,2654.8,2654.6,4.21648986]
[1727221067849,1.85132313,2654.8,2654.6,4.59315986]
[1727221068054,1.85132313,2654.8,2654.6,44.9088]
[1727221068256,1.87782313,2654.7,2654.6,3.2078]
[1727221069460,0.8979,2654.7,2654.6,3.2078]
[1727221069859,5.04177,2654.7,2654.6,3.2078]
[1727221070061,6.51130204,2654.7,2654.6,3.2078]
[1727221070259,6.69970116,2654.7,2654.6,3.2078]
[1727221070860,5.23016912,2654.7,2654.6,3.2078]
[1727221073085,0.37669,2654.6,2654.4,0.37671]
[1727221073286,0.8625,2654.5,2654.4,3.58451]
[1727221073579,1.7269,2654.5,2654.4,3.58451]
[1727221073984,1.7269,2654.5,2654.4,0.37671]
[1727221074174,1.7269,2654.5,2654.4,3.58451]
[1727221075581,1.7269,2654.5,2654.3,0.8546]
[1727221075781,0.98095917,2654.4,2654.3,1.23132]
[1727221077386,0.98095917,2654.4,2654.3,4.43912]
[1727221079493,0.98095917,2654.4,2654.3,5.38912]
[1727221085290,1.47105326,2654.5,2654.4,0.37671]
[1727221085485,1.47105326,2654.6,2654.5,0.37669]
[1727221085687,1.47105326,2654.6,2654.5,1.32669]
[1727221085992,1.47105326,2654.7,2654.6,0.37668]
[1727221086293,1.47105326,2654.7,2654.6,2.12548]
[1727221086493,1.47105326,2654.7,2654.6,6.78668]
[1727221087094,1.47105326,2654.7,2654.6,6.22728]
[1727221087296,1.96334619,2654.9,2654.7,0.37667]
[1727221087502,2.15173385,2654.9,2654.7,0.37667]
[1727221089804,0.18838766,2654.8,2654.6,43.4428]
[1727221090000,1.6607479,2654.7,2654.6,43.4428]
[1727221090193,1.6607479,2654.7,2654.6,43.81948]
[1727221090389,1.47236024,2654.7,2654.6,43.81948]
[1727221091294,1.47236024,2654.7,2654.6,43.4428]
[1727221091497,1.47236024,2654.7,2654.6,43.81948]
[1727221091696,1.47236024,2654.7,2654.6,47.02728]
[1727221091999,1.47236024,2654.7,2654.6,43.81948]
[1727221092699,0.18839211,2654.7,2654.6,43.81948]
[1727221092907,1.4726324,2654.7,2654.6,43.81948]
[1727221093099,1.4726324,2654.7,2654.6,47.02728]
[1727221094004,1.66108238,2654.7,2654.6,43.81948]
[1727221094304,1.47269027,2654.7,2654.6,47.97728]
[1727221094507,1.47269027,2654.8,2654.7,0.37667]
[1727221094803,1.47269027,2654.8,2654.7,1.32667]
[1727221095001,1.2931,2655.2,2654.8,0.37665]
[1727221095002,1.47269027,2654.9,2654.8,0.37665]
[1727221096493,0.18837279,2654.9,2654.7,0.37666]
[1727221096698,1.47268023,2654.8,2654.7,0.37666]
[1727221096898,1.66106172,2654.8,2654.7,0.37666]
[1727221097201,1.66106172,2654.8,2654.7,1.36362478]
[1727221097202,1.47268023,2654.8,2654.7,1.36362478]
[1727221097590,1.66105758,2654.8,2654.7,0.4820039]
[1727221098095,1.47268023,2654.8,2654.7,0.4820039]
[1727221098815,1.66105753,2654.8,2654.6,47.63756478]
[1727221099002,2.50755753,2654.8,2654.6,48.01424478]
[1727221099203,2.31918023,2654.8,2654.6,48.01424478]
[1727221099900,1.47268023,2654.7,2654.6,48.01424478]
[1727221105208,1.47268023,2654.7,2654.6,6.37254478]
[1727221105598,1.66106179,2654.7,2654.6,6.37254478]
[1727221106200,1.47268023,2654.7,2654.6,6.37254478]
[1727221106710,1.47268023,2654.7,2654.6,5.99586478]
[1727221106908,1.47268023,2654.7,2654.5,0.48036282]
[1727221106909,0.37668,2654.6,2654.5,0.98696478]
[1727221107209,0.37671,2654.4,2654.3,5.10856478]
[1727221107413,1.84936533,2654.4,2654.3,4.1216]
[1727221107711,2.03777328,2654.4,2654.3,5.10856478]
[1727221108207,2.03777328,2654.4,2654.3,4.1216]
[1727221108905,1.66106328,2654.4,2654.3,4.1216]
[1727221110015,1.66106328,2654.4,2654.3,5.10856478]
[1727221110310,0.98164439,2654.4,2654.3,9.36977242]
[1727221111403,0.98164439,2654.4,2654.3,9.74649242]
[1727221112512,0.98164439,2654.4,2654.3,6.53869242]
[1727221112808,0.98164439,2654.4,2654.3,9.74649242]
[1727221117214,0.98164439,2654.4,2654.3,6.53869242]
[1727221117416,0.98164439,2654.4,2654.3,9.74649242]
[1727221122319,0.98164439,2654.4,2654.3,8.26552]
[1727221123117,0.98164439,2654.4,2654.3,9.74696697]
[1727221123511,0.98164439,2654.4,2654.3,8.26552]
[1727221126406,0.37672,2654.3,2654.2,1.48167107]
[1727221126611,0.37672,2654.3,2653.8,2.46325875]
[1727221126612,14.42444138,2654.3,2653.8,0.98794811]
[1727221126812,14.42444138,2654.3,2653.7,3.2078]
[1727221126813,1.96338757,2653.9,2653.7,4.19574811]
[1727221127013,0.8673,2653.8,2653.7,4.19574811]
[1727221127221,0.8673,2653.8,2653.7,0.98794811]
[1727221127222,3.01908039,2653.8,2653.7,0.98794811]
[1727221127424,1.43249282,2653.8,2653.5,0.98794811]
[1727221127619,1.65971703,2653.7,2653.5,41.78794811]
[1727221128325,0.8673,2653.8,2653.5,40.8]
[1727221128326,0.9803519,2653.6,2653.5,40.8]
[1727221128522,1.65979501,2653.7,2653.5,40.8]
[1727221128712,1.47132421,2653.7,2653.5,40.8]
[1727221129413,0.97963241,2653.6,2653.5,40.8]
[1727221130018,5.12525241,2653.6,2653.5,40.8]
[1727221130318,0.37686,2653.4,2652.9,4.19574811]
[1727221130518,1.35579126,2653.4,2652.9,4.19574811]
[1727221130710,1.88663126,2653.3,2653.0,40.8]
[1727221131426,1.28457,2653.3,2653.0,40.8]
[1727221132418,0.9077,2653.3,2653.0,40.8]
[1727221134212,0.9077,2653.3,2653.1,2.06]
[1727221134413,0.9077,2653.3,2653.1,2.43689]
[1727221134821,0.9077,2653.3,2653.2,4.0644]
[1727221135416,0.9077,2653.3,2653.2,45.24128]
[1727221135611,3.12305126,2653.7,2653.2,45.24128]
[1727221135612,2.14412,2653.7,2653.2,45.24128]
[1727221135819,1.26842,2653.6,2653.2,44.8644]
[1727221136120,0.8916,2653.6,2653.2,45.24128]
[1727221136423,0.8916,2653.6,2653.2,44.8644]
[1727221136722,1.26843,2653.6,2653.2,44.8644]
[1727221137815,0.8916,2653.6,2653.2,44.8644]
[1727221138020,0.37684,2653.5,2653.2,41.6566]
[1727221138323,0.37684,2653.5,2653.2,40.8]
[1727221139111,0.8916,2653.6,2653.2,40.8]
[1727221139325,0.37687,2653.3,2653.2,40.8]
[1727221141614,0.37688,2653.2,2652.9,4.54877247]
[1727221141818,0.8577,2653.2,2652.9,4.54877247]
[1727221142022,1.7992,2653.1,2652.9,4.54877247]
[1727221142222,1.7992,2653.1,2653.0,40.8]
[1727221143330,0.8662,2653.1,2653.0,41.17691]
[1727221143825,0.8662,2653.1,2653.0,40.8]
[1727221144514,0.8774,2653.4,2653.0,41.1769]
[1727221144515,0.37686,2653.4,2653.0,41.1769]
[1727221144730,0.8872,2653.3,2653.0,41.1769]